bitfinex-derivatives/quotes_ETHF0:USTF0_20230106
["timestamp","ask_amount","ask_price","bid_price","bid_amount"]
[1673042866151,4.14152729,1266.2,1266.1,2.76113746]
[1673042867514,8.86916874,1266.3,1266.1,2.76113746]
[1673042868038,4.14152729,1266.3,1266.1,2.76113746]
[1673042868878,4.14152729,1266.3,1266.1,5.96893746]
[1673042869823,4.14152729,1266.3,1266.1,2.76113746]
[1673042870245,8.86916874,1266.3,1266.1,2.76113746]
[1673042870665,4.14152729,1266.3,1266.1,2.76113746]
[1673042873189,4.14152729,1266.3,1266.1,2.76513746]
[1673042875086,4.14152729,1266.3,1266.1,5.97293746]
[1673042876775,4.14152729,1266.3,1266.1,2.76513746]
[1673042876980,4.14152729,1266.3,1266.1,5.97293746]
[1673042877393,4.14152729,1266.3,1266.1,7.74437716]
[1673042878447,4.14152729,1266.3,1266.1,5.97293746]
[1673042878979,4.14152729,1266.3,1266.1,2.76513746]
[1673042879189,4.14152729,1266.3,1266.1,5.97293746]
[1673042882445,4.14152729,1266.3,1266.1,5.96863474]
[1673042883278,10.43816874,1266.4,1266.1,6.5602397]
[1673042884021,5.71052729,1266.4,1266.1,6.5602397]
[1673042884966,5.71052729,1266.4,1266.2,3.2078]
[1673042886331,4.14152729,1266.4,1266.2,4.7888]
[1673042901989,5.72252729,1266.5,1266.2,4.7888]
[1673042904091,10.45016874,1266.5,1266.2,4.7888]
[1673042904730,5.72252729,1266.5,1266.2,4.7888]
[1673042905676,10.45016874,1266.5,1266.2,4.7888]
[1673042906406,5.72252729,1266.5,1266.2,4.7888]
[1673042908191,5.72252729,1266.5,1266.3,3.2078]
[1673042909774,10.45016874,1266.5,1266.3,3.2078]
[1673042910506,10.45016874,1266.5,1266.2,4.7888]
[1673042911874,4.14152729,1266.4,1266.2,4.7888]
[1673042912191,10.45016874,1266.5,1266.3,3.2078]
[1673042913245,10.43816874,1266.5,1266.3,3.2078]
[1673042913980,10.43816874,1266.5,1266.2,1.581]
[1673042914200,10.43816874,1266.5,1266.3,3.2078]
[1673042916078,10.43816874,1266.5,1266.2,3.3524397]
[1673042916286,10.43816874,1266.5,1266.3,3.2078]
[1673042916916,10.43816874,1266.5,1266.3,4.7888]
[1673042916917,4.14152729,1266.5,1266.3,4.7888]
[1673042921741,4.14152729,1266.5,1266.4,3.2078]
[1673042926059,4.14152729,1266.5,1266.3,1.581]
[1673042926372,4.14152729,1266.5,1266.3,4.7888]
[1673042927415,4.14152729,1266.5,1266.3,1.581]
[1673042927625,4.14152729,1266.5,1266.3,4.7888]
[1673042931307,4.14152729,1266.5,1266.3,1.581]
[1673042931518,4.14152729,1266.5,1266.3,4.7888]
[1673042937822,10.45016874,1266.6,1266.3,12.6858]
[1673042938032,5.72252729,1266.6,1266.3,14.4572397]
[1673042940448,5.72252729,1266.6,1266.5,3.2078]
[1673042944553,5.72252729,1266.6,1266.3,11.2494397]
[1673042944758,5.72252729,1266.6,1266.4,3.2078]
[1673042945708,5.72252729,1266.6,1266.5,3.2078]
[1673042956650,10.45016874,1266.6,1266.5,3.2078]
[1673042957063,5.72252729,1266.6,1266.5,3.2078]
[1673042957594,5.72252729,1266.6,1266.4,4.7888]
[1673042957805,10.45016874,1266.6,1266.4,4.7888]
[1673042958329,5.72252729,1266.6,1266.4,4.7888]
[1673042959797,5.72252729,1266.6,1266.4,4.7850795]
[1673042960222,5.72252729,1266.6,1266.5,3.2078]
[1673042963268,10.45016874,1266.6,1266.5,3.2078]
[1673042963585,10.45016874,1266.6,1266.4,1.5772795]
[1673042963897,5.72252729,1266.6,1266.4,4.7850795]
[1673042969993,10.45016874,1266.6,1266.4,4.7850795]
[1673042971569,10.45016874,1266.6,1266.4,1.5772795]
[1673042971781,10.45016874,1266.6,1266.4,4.7850795]
[1673042973252,8.86916874,1266.6,1266.4,4.7848]
[1673042973876,4.14152729,1266.5,1266.4,4.7848]
[1673042975563,8.86916874,1266.6,1266.4,4.7848]
[1673042976088,4.14152729,1266.5,1266.4,4.7848]
[1673042976289,4.14152729,1266.5,1266.4,1.577]
[1673042976500,4.14152729,1266.5,1266.4,4.7848]
[1673042976930,8.86916874,1266.6,1266.4,4.7848]
[1673042979445,8.86916874,1266.6,1266.4,1.577]
[1673042979654,8.86916874,1266.6,1266.5,3.2078]
[1673042984700,4.72764145,1266.6,1266.5,3.2078]
[1673042985852,8.87244082,1266.6,1266.5,3.2078]
[1673042986911,4.14479937,1266.6,1266.5,3.2078]
[1673042987438,8.87244082,1266.6,1266.5,3.2078]
[1673042988489,4.14479937,1266.6,1266.5,3.2078]
[1673042992476,4.14479937,1266.6,1266.4,1.577]
[1673042992691,4.14479937,1266.6,1266.5,3.2078]
[1673042995431,4.14479937,1266.6,1266.4,1.577]
[1673042995632,4.14479937,1266.6,1266.5,3.2078]
[1673043002787,4.14479937,1266.6,1266.4,5.96911578]
[1673043022228,8.87244082,1266.6,1266.4,5.96911578]
[1673043024760,4.14479937,1266.6,1266.4,5.96911578]
[1673043027800,4.14479937,1266.6,1266.4,7.74055548]
[1673043028643,4.14479937,1266.6,1266.5,3.2078]
[1673043052599,4.14479937,1266.6,1266.4,4.53275548]
[1673043052807,4.14479937,1266.6,1266.5,3.2078]
[1673043057535,4.14479937,1266.6,1266.4,2.95575548]
[1673043057749,4.14479937,1266.6,1266.5,3.2078]
[1673043063110,4.14479937,1266.6,1266.5,4.39211578]
[1673043063317,4.14479937,1266.6,1266.5,3.2078]
[1673043066155,4.14479937,1266.6,1266.4,2.95575548]
[1673043066472,4.14479937,1266.6,1266.5,3.2078]
[1673043070676,4.14479937,1266.6,1266.4,6.16355548]
[1673043072987,4.14479937,1266.6,1266.4,6.15972455]
[1673043082030,4.14479937,1266.6,1266.4,2.95192455]
[1673043082250,4.14479937,1266.6,1266.4,6.15972455]
[1673043083925,4.14479937,1266.6,1266.4,4.38828485]
[1673043084235,4.14479937,1266.5,1266.4,3.2078]
[1673043084870,4.14479937,1266.5,1266.3,12.8762397]
[1673043086032,8.87244082,1266.6,1266.3,12.8762397]
[1673043086866,8.87244082,1266.6,1266.4,3.2078]
[1673043087293,4.14479937,1266.6,1266.4,3.2078]
[1673043088342,8.87244082,1266.6,1266.4,3.2078]
[1673043089392,4.14479937,1266.6,1266.4,3.2078]
[1673043098215,8.87244082,1266.6,1266.4,3.2078]
[1673043098536,4.14479937,1266.6,1266.4,3.2078]
[1673043101898,4.14479937,1266.6,1266.3,12.03066392]
[1673043102210,4.14479937,1266.6,1266.4,3.2078]
[1673043106298,4.14479937,1266.6,1266.3,12.03066392]
[1673043106517,4.14479937,1266.6,1266.4,3.2078]
[1673043107258,8.87244082,1266.6,1266.4,3.2078]
[1673043107566,8.87244082,1266.6,1266.3,9.6684397]
[1673043107778,8.87244082,1266.6,1266.4,3.2078]
[1673043107989,4.14479937,1266.6,1266.4,3.2078]
[1673043108200,8.87244082,1266.6,1266.4,3.2078]
[1673043109256,4.14479937,1266.6,1266.4,3.2078]
[1673043112818,8.87244082,1266.6,1266.4,3.2078]
[1673043113144,4.14479937,1266.6,1266.4,4.9792397]
[1673043114502,4.14479937,1266.6,1266.4,3.2078]
[1673043116604,4.14479937,1266.6,1266.4,4.9792397]
[1673043120389,4.14479937,1266.6,1266.4,3.2078]
[1673043121439,8.87244082,1266.6,1266.4,3.2078]
[1673043121652,4.14479937,1266.6,1266.4,3.2078]
[1673043124275,8.87244082,1266.6,1266.3,9.6684397]
[1673043124485,4.14479937,1266.6,1266.4,3.2078]
[1673043125858,4.14479937,1266.6,1266.4,4.9792397]
[1673043126071,4.14479937,1266.6,1266.4,3.2078]
[1673043126281,4.14479937,1266.6,1266.4,4.9792397]
[1673043129746,4.14479937,1266.6,1266.4,1.7714397]
[1673043129957,4.14479937,1266.6,1266.5,3.2078]
[1673043131012,4.14479937,1266.6,1266.4,1.7714397]
[1673043131223,4.14479937,1266.6,1266.5,3.2078]
[1673043131425,4.14479937,1266.6,1266.3,12.03066392]
[1673043131637,4.14479937,1266.6,1266.5,3.2078]
[1673043135529,4.14479937,1266.6,1266.4,3.2078]
[1673043136675,4.14479937,1266.6,1266.5,3.2078]
[1673043138364,4.14479937,1266.6,1266.4,1.7714397]
[1673043138574,4.14479937,1266.6,1266.5,3.2078]
[1673043140671,4.14479937,1266.6,1266.4,1.7714397]
[1673043140886,4.14479937,1266.6,1266.5,3.2078]
[1673043142043,4.14479937,1266.6,1266.5,3.20226984]
[1673043143617,4.14479937,1266.6,1266.4,1.7714397]
[1673043143836,4.14479937,1266.6,1266.5,3.2078]
[1673043146668,4.14479937,1266.6,1266.4,3.2078]
[1673043146881,4.14479937,1266.6,1266.3,12.03066392]
[1673043147191,4.14479937,1266.6,1266.4,3.2078]
[1673043147612,4.14479937,1266.6,1266.3,12.03066392]
[1673043147818,4.14479937,1266.6,1266.4,3.2078]
[1673043148875,4.14479937,1266.6,1266.4,4.9792397]
[1673043150762,4.14479937,1266.6,1266.4,1.7714397]
[1673043150973,4.14479937,1266.6,1266.5,3.2078]
[1673043152555,4.14479937,1266.6,1266.4,1.7714397]
[1673043153081,4.14479937,1266.6,1266.5,3.2078]
[1673043155713,4.14479937,1266.6,1266.4,1.7714397]
[1673043155921,4.14479937,1266.6,1266.5,3.2078]
[1673043156854,4.14479937,1266.6,1266.4,1.7714397]
[1673043157072,4.14479937,1266.6,1266.5,3.2078]
[1673043157392,4.14479937,1266.6,1266.4,1.7714397]
[1673043157603,4.14479937,1266.6,1266.5,3.2078]
[1673043169051,8.87244082,1266.6,1266.5,3.2078]
[1673043170733,8.87244082,1266.6,1266.3,12.03066392]
[1673043170951,8.87244082,1266.6,1266.4,3.2078]
[1673043172096,4.14479937,1266.6,1266.4,3.2078]
[1673043173675,4.14479937,1266.6,1266.3,12.03066392]
[1673043173887,4.14479937,1266.6,1266.4,3.2078]
[1673043176934,4.14479937,1266.6,1266.3,12.03066392]
[1673043177144,4.14479937,1266.6,1266.4,3.2078]
[1673043183871,4.14479937,1266.6,1266.3,12.03066392]
[1673043184082,4.14479937,1266.6,1266.4,3.2078]
[1673043187547,4.14479937,1266.6,1266.3,12.03066392]
[1673043187761,4.14479937,1266.6,1266.4,3.2078]
[1673043189445,4.14479937,1266.6,1266.4,4.9792397]
[1673043190272,4.14479937,1266.6,1266.4,1.7714397]
[1673043190489,4.14479937,1266.6,1266.5,3.2078]
[1673043196379,4.14479937,1266.6,1266.4,2.9558306]
[1673043196905,4.14479937,1266.6,1266.5,3.2078]
[1673043199644,4.14479937,1266.6,1266.4,2.9558306]
[1673043200063,4.14479937,1266.6,1266.5,3.2078]
[1673043202376,4.14479937,1266.6,1266.4,2.9558306]
[1673043202582,4.14479937,1266.6,1266.5,3.2078]
[1673043203215,4.14479937,1266.6,1266.4,2.9558306]
[1673043203739,4.14479937,1266.6,1266.5,3.2078]
[1673043205414,4.14479937,1266.6,1266.4,2.9558306]
[1673043205629,4.14479937,1266.6,1266.5,3.2078]
[1673043218023,4.14479937,1266.6,1266.5,3.20169603]
[1673043218869,4.14479937,1266.6,1266.5,3.2078]
[1673043221602,4.14479937,1266.6,1266.4,2.9558306]
[1673043221804,4.14479937,1266.6,1266.5,3.2078]
[1673043226643,4.14479937,1266.6,1266.4,2.9558306]
[1673043226860,4.14479937,1266.6,1266.5,3.2078]
[1673043227273,4.14479937,1266.6,1266.4,2.9558306]
[1673043227594,4.14479937,1266.6,1266.5,3.2078]
[1673043237779,8.87244082,1266.6,1266.5,3.2078]
[1673043240308,4.14479937,1266.6,1266.4,1.1843909]
[1673043241044,8.87244082,1266.6,1266.4,1.1843909]
[1673043241254,4.14479937,1266.6,1266.4,1.1843909]
[1673043245573,4.14479937,1266.6,1266.4,2.9558306]
[1673043247451,4.14479937,1266.6,1266.4,6.1636306]
[1673043249459,4.14479937,1266.6,1266.4,2.9558306]
[1673043249777,4.14479937,1266.6,1266.4,6.1636306]
[1673043251141,4.14479937,1266.6,1266.5,3.2078]
[1673043252085,4.14479937,1266.6,1266.4,2.9558306]
[1673043252504,4.14479937,1266.6,1266.5,3.2078]
[1673043253457,4.14479937,1266.6,1266.4,2.9558306]
[1673043253666,4.14479937,1266.6,1266.5,3.2078]
[1673043258284,4.72764145,1266.8,1266.5,6.1636306]
[1673043260284,4.72764145,1266.8,1266.6,3.2078]
[1673043265654,4.72764145,1266.8,1266.5,1.1843909]
[1673043266277,4.72764145,1266.8,1266.6,3.2078]
[1673043266804,10.03443237,1266.9,1266.6,3.2078]
[1673043268487,4.72764145,1266.9,1266.6,3.2078]
[1673043268689,4.72764145,1266.9,1266.5,1.1843909]
[1673043268902,4.72764145,1266.9,1266.6,3.2078]
[1673043270383,4.72764145,1266.9,1266.6,4.3921909]
[1673043270695,4.72764145,1266.9,1266.6,3.2078]
[1673043272378,4.72764145,1266.9,1266.5,2.9558306]
[1673043272695,4.72764145,1266.9,1266.6,3.2078]
[1673043273950,4.72348634,1266.9,1266.6,3.2078]
[1673043275206,14.40135219,1267.1,1266.6,4.3921909]
[1673043275741,14.40135219,1267.1,1266.6,3.2078]
[1673043275942,5.30679092,1267.0,1266.6,3.2078]
[1673043277203,5.30679092,1267.0,1266.6,11.1048]
[1673043277419,5.30679092,1267.0,1266.8,3.2078]
[1673043277626,14.40135219,1267.1,1266.8,3.2078]
[1673043278253,8.51459092,1267.1,1266.8,3.2078]
[1673043281514,5.30679092,1267.1,1266.6,10.2627909]
[1673043281725,8.51459092,1267.1,1266.7,3.2078]
[1673043283934,4.72679103,1267.0,1266.7,3.2078]
[1673043292451,4.72679103,1267.0,1266.8,3.2078]
[1673043296342,4.72679103,1267.0,1266.6,2.3657909]
[1673043296650,4.72679103,1267.0,1266.8,3.2078]
[1673043298755,4.72679103,1267.0,1266.6,4.1372306]
[1673043299065,4.72679103,1267.0,1266.8,3.2078]
[1673043306113,4.72679103,1267.0,1266.7,1.1843909]
[1673043306325,4.72679103,1267.0,1266.8,3.2078]
[1673043306540,4.72679103,1267.0,1266.7,1.1843909]
[1673043306953,4.72679103,1267.0,1266.8,3.2078]
[1673043307379,4.72679103,1267.0,1266.7,1.1843909]
[1673043307589,4.72679103,1267.0,1266.8,3.2078]
[1673043315260,10.03358195,1267.1,1266.8,4.3921909]
[1673043315466,10.03358195,1267.1,1266.8,3.2078]
[1673043317256,10.03358195,1267.1,1266.9,3.2078]
[1673043323665,4.72679103,1267.1,1266.9,3.2078]
[1673043334598,10.03358195,1267.2,1266.9,3.2078]
[1673043334804,4.72679103,1267.1,1266.9,3.2078]
[1673043335228,10.03358195,1267.2,1266.9,3.2078]
[1673043335858,4.72679103,1267.1,1266.9,3.2078]
[1673043336073,10.03358195,1267.2,1266.9,3.2078]
[1673043337536,10.03358195,1267.2,1267.0,3.2078]
[1673043338270,10.03358195,1267.2,1266.8,10.8528306]
[1673043338486,10.03358195,1267.2,1267.0,3.2078]
[1673043339638,4.72679103,1267.2,1267.0,3.2078]
[1673043341005,4.72679103,1267.2,1267.0,3.20329473]
[1673043342580,4.72679103,1267.2,1266.8,14.0606306]
[1673043342790,4.72679103,1267.2,1266.8,12.2891909]
[1673043343001,13.24138195,1267.2,1266.8,11.1048]
[1673043343208,4.72679103,1267.1,1266.8,11.1048]
[1673043344051,4.72679103,1267.1,1266.8,3.2078]
[1673043344261,4.72679103,1267.1,1266.8,4.3921909]
[1673043346357,4.72679103,1267.1,1266.9,3.2078]
[1673043348359,4.72679103,1267.1,1266.8,1.1843909]
[1673043348569,4.72679103,1267.1,1266.9,3.2078]
[1673043349516,4.72679103,1267.1,1266.8,1.1843909]
[1673043349715,4.72679103,1267.1,1266.9,3.2078]
[1673043351409,4.72679103,1267.1,1266.8,1.1843909]
[1673043351614,4.72679103,1267.1,1266.9,3.2078]
[1673043351825,4.72679103,1267.1,1266.8,1.1843909]
[1673043352035,4.72679103,1267.1,1266.9,3.2078]
[1673043352246,4.72679103,1267.1,1266.8,1.1843909]
[1673043352769,4.72679103,1267.1,1266.9,3.2078]
[1673043354449,4.72679103,1267.1,1266.8,1.1843909]
[1673043354664,4.72679103,1267.1,1266.9,3.2078]
[1673043355289,4.72679103,1267.1,1266.8,1.1843909]
[1673043355500,10.03358195,1267.1,1266.9,3.2078]
[1673043357396,4.72679103,1267.0,1266.9,3.2078]
[1673043361601,4.72679103,1267.1,1266.9,3.2078]
[1673043362863,10.03358195,1267.1,1266.9,3.2078]
[1673043364642,4.72679103,1267.0,1266.9,3.2078]
[1673043364960,4.72679103,1267.0,1266.7,2.3657909]
[1673043365170,4.72679103,1267.0,1266.8,3.2078]
[1673043367695,4.72679103,1267.0,1266.7,5.5735909]
[1673043368644,10.03358195,1267.1,1266.7,7.3450306]
[1673043369058,10.03358195,1267.1,1266.7,5.5735909]
[1673043369266,4.72679103,1267.0,1266.7,5.5735909]
[1673043371801,4.72679103,1267.0,1266.8,3.2078]
[1673043377897,4.72679103,1267.0,1266.7,2.3657909]
[1673043378105,4.72679103,1267.0,1266.8,3.2078]
[1673043378740,10.03358195,1267.1,1266.8,3.2078]
[1673043379882,10.03358195,1267.1,1266.7,4.1372306]
[1673043380101,4.72679103,1267.0,1266.8,3.2078]
[1673043383997,4.72679103,1267.0,1266.7,4.1372306]
[1673043384202,4.72679103,1267.0,1266.8,3.2078]
[1673043391774,4.72679103,1267.0,1266.7,4.1372306]
[1673043391977,4.72679103,1267.0,1266.8,3.2078]
[1673043400612,4.72679103,1267.0,1266.8,4.3921909]
[1673043400820,10.03358195,1267.1,1266.9,1.1843909]
[1673043401138,4.72679103,1267.1,1266.8,6.1636306]
[1673043402812,4.72679103,1267.1,1266.8,4.3921909]
[1673043405141,4.72679103,1267.1,1266.9,3.2078]
[1673043405553,4.72679103,1267.1,1266.9,3.20360627]
[1673043408081,4.72679103,1267.1,1266.9,3.2078]
[1673043417652,4.72679103,1267.1,1266.8,1.1843909]
[1673043417865,4.72679103,1267.1,1266.9,3.2078]
[1673043422380,4.72679103,1267.1,1266.8,1.1843909]
[1673043422585,4.72679103,1267.1,1266.9,3.2078]
[1673043423328,10.03358195,1267.2,1266.9,3.2078]
[1673043425628,10.03358195,1267.2,1267.0,3.2078]
[1673043426585,10.03358195,1267.2,1266.8,10.8528306]
[1673043426903,10.03358195,1267.2,1267.0,3.2078]
[1673043431096,10.03358195,1267.2,1266.8,10.8528306]
[1673043431312,10.03358195,1267.2,1267.0,3.2078]
[1673043431523,10.03358195,1267.2,1266.8,9.0813909]
[1673043431839,10.03358195,1267.2,1266.9,3.2078]
[1673043432476,4.72679103,1267.1,1266.9,3.2078]
[1673043432678,10.03358195,1267.2,1266.9,3.2078]
[1673043433418,4.72679103,1267.1,1266.9,3.2078]
[1673043435004,4.72679103,1267.1,1266.8,9.0813909]
[1673043435316,4.72679103,1267.1,1266.9,3.2078]
[1673043436054,4.72679103,1267.1,1266.8,9.0813909]
[1673043436262,4.72679103,1267.1,1266.9,3.2078]
[1673043438051,4.72679103,1267.1,1266.8,9.0813909]
[1673043438365,4.72679103,1267.1,1266.9,3.2078]
[1673043440151,4.72679103,1267.1,1266.8,9.0813909]
[1673043440356,4.72679103,1267.1,1266.9,3.2078]
[1673043443194,4.72679103,1267.1,1266.8,10.8528306]
[1673043443403,4.72679103,1267.1,1266.9,3.2078]
[1673043444047,4.72679103,1267.1,1266.8,10.8528306]
[1673043444363,4.72679103,1267.1,1266.9,3.2078]
[1673043445935,4.72679103,1267.1,1266.8,10.8528306]
[1673043446133,4.72679103,1267.1,1266.9,3.2078]
[1673043446349,4.72679103,1267.1,1266.8,10.8528306]
[1673043446562,4.72679103,1267.1,1266.9,3.2078]
[1673043447829,4.72679103,1267.1,1266.8,10.8528306]
[1673043448143,4.72679103,1267.1,1266.9,3.2078]
[1673043448876,4.72679103,1267.1,1266.9,4.3921909]
[1673043452244,4.72679103,1267.1,1267.0,3.2078]
[1673043456023,4.72679103,1267.1,1266.8,10.8528306]
[1673043456234,4.72679103,1267.1,1267.0,3.2078]
[1673043457911,4.72679103,1267.1,1266.9,1.1843909]
[1673043458127,4.72679103,1267.1,1267.0,3.2078]
[1673043461276,10.03358195,1267.2,1267.0,3.2078]
[1673043462958,10.03358195,1267.2,1266.9,1.1843909]
[1673043463167,10.03358195,1267.2,1267.0,3.2078]
[1673043463373,4.72679103,1267.2,1267.0,3.2078]
[1673043464010,4.72679103,1267.2,1266.9,1.1843909]
[1673043464329,4.72679103,1267.2,1267.0,3.2078]
[1673043467054,10.03358195,1267.2,1267.0,3.2078]
[1673043467475,4.72679103,1267.1,1267.0,3.2078]
[1673043467893,4.72679103,1267.1,1266.9,1.1843909]
[1673043468102,4.72679103,1267.1,1266.9,12.2891909]
[1673043469260,10.03358195,1267.2,1266.9,12.2891909]
[1673043469786,4.72679103,1267.1,1266.9,12.2891909]
[1673043470208,4.72679103,1267.1,1267.0,3.2078]
[1673043470628,4.72679103,1267.1,1267.0,3.20363719]
[1673043470942,10.03358195,1267.2,1267.0,3.20363719]
[1673043473044,4.72679103,1267.1,1267.0,3.20363719]
[1673043474303,4.72679103,1267.1,1267.0,3.2078]
[1673043474520,10.03358195,1267.2,1267.0,3.2078]
[1673043476199,10.03358195,1267.2,1267.0,11.1048]
[1673043476831,4.72679103,1267.2,1267.0,11.1048]
[1673043477875,4.72679103,1267.2,1266.9,9.0813909]
[1673043478395,4.72679103,1267.2,1267.0,11.1048]
[1673043478928,4.72679103,1267.2,1267.0,7.897]
[1673043479140,4.72679103,1267.2,1267.0,11.1048]
[1673043487861,4.72679103,1267.2,1266.9,9.0813909]
[1673043488175,4.72679103,1267.2,1267.0,11.1048]
[1673043491434,4.72679103,1267.2,1267.0,7.897]
[1673043491646,4.72679103,1267.2,1267.0,11.1048]
[1673043492903,4.72679103,1267.2,1266.9,9.0813909]
[1673043493119,4.72679103,1267.2,1267.0,11.1048]
[1673043501314,4.72679103,1267.2,1267.0,7.897]
[1673043501524,4.72679103,1267.2,1267.0,11.1048]
[1673043503944,4.72679103,1267.2,1267.0,7.897]
[1673043504262,4.72679103,1267.2,1267.0,11.1048]
[1673043507631,4.72679103,1267.2,1267.0,3.2078]
[1673043508052,10.03358195,1267.2,1267.0,3.2078]
[1673043509207,10.03358195,1267.2,1267.0,11.1048]
[1673043509942,4.72679103,1267.2,1267.0,11.1048]
[1673043510471,4.72679103,1267.1,1267.0,11.1048]
[1673043510672,11.19355219,1267.3,1267.0,11.1048]
[1673043510673,10.03358195,1267.2,1267.0,11.1048]
[1673043511096,10.03358195,1267.2,1267.0,3.2078]
[1673043512676,4.72679103,1267.2,1267.0,3.2078]
[1673043514564,10.03358195,1267.2,1267.0,3.2078]
[1673043514979,10.03358195,1267.2,1266.9,9.0813909]
[1673043515194,10.03358195,1267.2,1267.0,3.2078]
[1673043516975,10.03358195,1267.2,1266.9,10.8528306]
[1673043517185,10.03358195,1267.2,1267.0,3.2078]
[1673043518034,4.72679103,1267.2,1267.0,3.2078]
[1673043518774,10.03358195,1267.2,1267.0,3.2078]
[1673043519509,4.72679103,1267.1,1267.0,3.2078]
[1673043521293,4.72679103,1267.1,1266.9,9.0813909]
[1673043521504,4.72679103,1267.1,1266.9,12.2891909]
[1673043527390,10.03358195,1267.2,1266.9,12.2891909]
[1673043529178,10.03358195,1267.2,1266.9,9.0813909]
[1673043529391,10.03358195,1267.2,1267.0,3.2078]
[1673043535067,10.03358195,1267.2,1267.0,3.20097337]
[1673043539163,10.03358195,1267.2,1267.0,3.2078]
[1673043541270,10.03358195,1267.2,1266.9,9.0813909]
[1673043541471,10.03358195,1267.2,1267.0,3.2078]
[1673043541894,10.03358195,1267.2,1266.9,7.897]
[1673043542099,13.24138195,1267.2,1266.8,12.2891909]
[1673043542419,19.12814322,1267.2,1266.8,14.0606306]
[1673043542735,4.72679103,1267.1,1266.8,14.0606306]
[1673043543578,4.72679103,1267.1,1266.8,12.2891909]
[1673043543992,4.72679103,1267.1,1266.8,14.0606306]
[1673043544628,4.72679103,1267.1,1266.8,12.2891909]
[1673043544837,4.72679103,1267.1,1266.8,14.0606306]
[1673043545784,4.72679103,1267.1,1266.8,12.2891909]
[1673043546201,4.72679103,1267.1,1266.8,14.0606306]
[1673043546415,4.72679103,1267.1,1266.8,12.2891909]
[1673043548204,4.72679103,1267.1,1266.8,14.0606306]
[1673043548618,4.72679103,1267.1,1266.8,12.2891909]
[1673043550509,4.72679103,1267.1,1266.8,9.0813909]
[1673043550721,4.72679103,1267.1,1266.9,3.2078]
[1673043552404,4.72679103,1267.1,1266.8,9.0813909]
[1673043553141,4.72679103,1267.1,1266.9,3.2078]
[1673043557764,10.03358195,1267.2,1266.9,3.2078]
[1673043558607,4.72679103,1267.1,1266.9,3.2078]
[1673043558925,10.03358195,1267.2,1266.9,3.2078]
[1673043559656,4.72679103,1267.1,1266.9,3.2078]
[1673043561865,4.72679103,1267.1,1266.8,10.8528306]
[1673043562079,4.72679103,1267.1,1266.9,3.2078]
[1673043568587,4.72679103,1267.1,1266.8,9.0813909]
[1673043568804,4.72679103,1267.1,1266.8,12.2891909]
[1673043569754,4.72679103,1267.1,1266.8,11.1048]
[1673043569967,4.72679103,1267.1,1266.8,12.2891909]
[1673043570807,4.72679103,1267.1,1266.8,9.0813909]
[1673043571324,4.72679103,1267.1,1266.8,4.3921909]
[1673043572485,4.72679103,1267.1,1266.9,3.2078]
[1673043572796,4.72679103,1267.1,1266.8,1.1843909]
[1673043573215,4.72679103,1267.1,1266.9,3.2078]
[1673043575634,4.72679103,1267.1,1266.8,1.1843909]
[1673043575840,4.72679103,1267.1,1266.9,3.2078]
[1673043579627,4.72679103,1267.1,1266.8,1.1843909]
[1673043579835,4.72679103,1267.1,1266.9,3.2078]
[1673043584248,4.72679103,1267.1,1266.8,2.9558306]
[1673043584568,4.72679103,1267.1,1266.9,3.2078]
[1673043587087,4.72679103,1267.1,1266.8,2.9558306]
[1673043587296,4.72679103,1267.1,1266.9,3.2078]
[1673043587929,4.72679103,1267.1,1266.8,2.9558306]
[1673043588142,4.72679103,1267.1,1266.9,3.2078]
[1673043591400,4.72679103,1267.1,1266.8,2.9558306]
[1673043591926,4.72679103,1267.1,1266.9,3.2078]
[1673043602856,4.72679103,1267.1,1266.8,2.9558306]
[1673043603172,4.72679103,1267.1,1266.9,3.2078]
[1673043608739,4.72679103,1267.1,1266.9,3.20068746]
[1673043609270,4.72679103,1267.1,1266.9,3.2078]
[1673043611162,4.72679103,1267.1,1266.8,2.9558306]
[1673043611475,4.72679103,1267.1,1266.9,3.2078]
[1673043611891,4.72679103,1267.1,1266.8,2.9558306]
[1673043612202,4.72679103,1267.1,1266.9,3.2078]
[1673043614307,10.03358195,1267.1,1266.9,3.2078]
[1673043614837,4.72679103,1267.1,1266.9,3.2078]
[1673043616937,10.03358195,1267.1,1266.9,3.2078]
[1673043617253,4.72679103,1267.1,1266.9,3.2078]
[1673043621879,4.72679103,1267.1,1266.8,2.9558306]
[1673043622090,4.72679103,1267.1,1266.9,3.2078]
[1673043622931,4.72679103,1267.1,1266.8,2.9558306]
[1673043623141,4.72679103,1267.1,1266.9,3.2078]
[1673043624928,4.72679103,1267.1,1266.8,2.9558306]
[1673043625137,4.72679103,1267.1,1266.9,3.2078]
[1673043625771,4.72679103,1267.1,1266.8,2.9558306]
[1673043626088,4.72679103,1267.1,1266.9,3.2078]
[1673043627133,10.03358195,1267.1,1266.9,3.2078]
[1673043627771,4.72679103,1267.0,1266.9,3.2078]
[1673043629867,4.72679103,1267.0,1266.8,1.1843909]
[1673043630194,4.72679103,1267.0,1266.8,4.3921909]
[1673043632296,10.03358195,1267.1,1266.8,4.3921909]
[1673043635348,10.03358195,1267.1,1266.8,1.1843909]
[1673043635550,10.03358195,1267.1,1266.8,4.3921909]
[1673043635870,10.03358195,1267.1,1266.8,1.1843909]
[1673043636083,10.03358195,1267.1,1266.8,4.3921909]
[1673043638699,10.03358195,1267.1,1266.8,1.1843909]
[1673043638907,4.72679103,1267.1,1266.8,4.3921909]
[1673043639866,4.72679103,1267.1,1266.8,1.1843909]
[1673043640075,4.72679103,1267.1,1266.8,4.3921909]
[1673043646699,4.72679103,1267.1,1266.8,6.1636306]
[1673043646905,4.72679103,1267.1,1266.9,3.2078]
[1673043648597,4.72679103,1267.1,1266.8,2.9558306]
[1673043648796,4.72679103,1267.1,1266.9,3.2078]
[1673043649749,4.72679103,1267.1,1266.8,2.9558306]
[1673043649962,4.72679103,1267.1,1266.9,3.2078]
[1673043651650,4.72679103,1267.1,1266.8,2.9558306]
[1673043651850,4.72679103,1267.1,1266.9,3.2078]
[1673043652694,4.72679103,1267.1,1266.8,2.9558306]
[1673043652910,4.72679103,1267.1,1266.9,3.2078]
[1673043661633,4.72679103,1267.1,1266.8,2.9558306]
[1673043661848,4.72679103,1267.1,1266.9,3.2078]
[1673043672359,4.72679103,1267.1,1266.7,15.2420306]
[1673043672570,4.72679103,1267.1,1266.8,1.1843909]
[1673043672776,4.72679103,1267.0,1266.7,15.2420306]
[1673043673194,4.72679103,1267.0,1266.7,15.2375435]
[1673043673935,10.03358195,1267.1,1266.8,1.1843909]
[1673043674570,4.72679103,1267.1,1266.8,1.1843909]
[1673043675943,10.03358195,1267.1,1266.8,1.1843909]
[1673043676465,10.03358195,1267.1,1266.9,3.2078]
[1673043676780,4.72679103,1267.1,1266.9,3.2078]